fUST/lending_fUST_20241231
["ID","MTS","AMOUNT","RATE_DAILY","PERIOD"]
[347237667,1735608646139,-249.95242725,0.00021052,2]
[347237668,1735608646148,-11942.033214,0.00021053,2]
[347237669,1735608646157,-66166.8641281,0.00021053,2]
[347237670,1735608646167,-253143.93582307,0.00021053,10]
[347237673,1735608646418,-2489.515304,0.00021053,10]
[347237674,1735608646430,-773.5743532,0.00021053,10]
[347237675,1735608646442,-3794.90223091,0.00021053,10]
[347237676,1735608646454,-4389.3977169,0.00021053,10]
[347237677,1735608646465,-11377.41838222,0.00021053,10]
[347237678,1735608646477,-29988.86556012,0.00021053,10]
[347237679,1735608646489,-605.0576069,0.00021053,10]
[347237680,1735608646500,-44087.14941455,0.00021053,10]
[347237681,1735608648012,-501.36474746,0.00019972,3]
[347237682,1735608648022,-1777.8748131,0.0002,2]
[347237683,1735608648032,-10141.78191204,0.00021053,10]
[347237684,1735608648068,-1309.499991,0.00021053,10]
[347237685,1735608649669,-29989.50136978,0.00021053,10]
[347237686,1735608649706,-317.89007648,0.00021053,10]
[347237687,1735608649717,-587.91535034,0.00021053,10]
[347237688,1735608653391,-500.0,0.00019974,3]
[347237689,1735608653400,-5167.79883886,0.00020953,2]
[347237690,1735608653410,-123692.47492754,0.00021053,10]
[347237691,1735608653451,-2240.86233,0.00021053,10]
[347237752,1735609000776,192.59,0.00025,120]
[347237756,1735609098117,477.0,0.00025,120]
[347237760,1735609494152,821.636571,0.00025,120]
[347237761,1735609551143,-206.732259,0.00013695,2]
[347237762,1735609551163,-206.732259,0.00013973,2]
[347237763,1735609551183,-215.3997763,0.00019077,2]
[347237764,1735609551202,-172.055231,0.00019178,2]
[347237765,1735609551221,-208.7511129,0.0001987,2]
[347237766,1735609551240,-196.26215048,0.00019871,2]
[347237767,1735609551259,-506.71921643,0.00019969,3]
[347237768,1735609551279,-506.98079391,0.00019969,3]
[347237769,1735609551299,-502.55188385,0.00019969,3]
[347237770,1735609551318,-504.69440064,0.00019969,3]
[347237771,1735609551339,-506.24755752,0.00019969,3]
[347237772,1735609551358,-502.82556457,0.00019969,3]
[347237773,1735609551378,-502.77429682,0.00019969,3]
[347237774,1735609551398,-509.64153171,0.00019969,3]
[347237775,1735609551417,-502.53450734,0.00019969,3]
[347237776,1735609551438,-507.57050662,0.00019969,3]
[347237777,1735609551457,-510.05443304,0.00019969,3]
[347237778,1735609551476,-501.00439745,0.00019969,3]
[347237779,1735609551496,-502.85146574,0.00019969,3]
[347237780,1735609551515,-510.04406223,0.00019969,3]
[347237781,1735609551535,-171.82,0.0001997,2]
[347237782,1735609551554,-191.94863544,0.0001997,2]
[347237783,1735609551574,-505.8299747,0.0001997,3]
[347237784,1735609551595,-500.0,0.0001997,3]
[347237785,1735609551617,-502.10660046,0.0001997,3]
[347237786,1735609551637,-500.0,0.0001997,3]
[347237787,1735609551656,-167.42123486,0.0001997,3]
[347237788,1735609551679,-500.0,0.0001997,3]
[347237789,1735609551699,-626.26,0.0001997,3]
[347237790,1735609551718,-500.0,0.0001997,3]
[347237791,1735609551738,-868.48,0.0001997,3]
[347237792,1735609551758,-500.0,0.0001997,3]
[347237793,1735609551778,-500.0,0.0001997,3]
[347237794,1735609551797,-900.35,0.0001997,3]
[347237795,1735609551818,-1571.19,0.0001997,3]
[347237796,1735609551838,-500.0,0.0001997,3]
[347237797,1735609551859,-692.07,0.0001997,3]
[347237798,1735609551879,-781.58,0.0001997,3]
[347237799,1735609551900,-500.0,0.0001997,3]
[347237800,1735609551920,-500.0,0.0001997,3]
[347237801,1735609551942,-779.12,0.0001997,3]
[347237802,1735609551966,-835.88,0.0001997,3]
[347237803,1735609551985,-503.20306418,0.0001997,3]
[347237804,1735609552006,-718.81,0.0001997,3]
[347237805,1735609552027,-754.77,0.0001997,3]
[347237806,1735609552131,-517.46183231,0.0001997,3]
[347237807,1735609552152,-617.9,0.0001997,3]
[347237808,1735609552173,-500.0,0.0001997,3]
[347237809,1735609552192,-500.0,0.0001997,3]
[347237810,1735609552214,-2721.85,0.0001997,3]
[347237811,1735609552234,-500.0,0.0001997,3]
[347237812,1735609552253,-501.11529001,0.0001997,3]
[347237813,1735609552274,-854.9,0.0001997,3]
[347237814,1735609552294,-500.0,0.0001997,3]
[347237815,1735609552314,-503.74356957,0.0001997,3]
[347237816,1735609552334,-500.0,0.0001997,2]
[347237817,1735609552356,-500.0,0.0001997,3]
[347237818,1735609552377,-500.0,0.0001997,3]
[347237819,1735609552396,-500.0,0.0001997,3]
[347237820,1735609552417,-500.0,0.0001997,3]
[347237821,1735609552437,-5574.32,0.0001997,3]
[347237822,1735609552459,-1295.8,0.0001997,3]
[347237823,1735609552480,-992.23,0.0001997,3]
[347237824,1735609552500,-500.0,0.00019971,3]
[347237825,1735609552520,-500.0,0.00019971,3]
[347237826,1735609552539,-502.28401587,0.00019971,3]
[347237827,1735609552560,-500.0,0.00019971,3]
[347237828,1735609552580,-500.0,0.00019971,3]
[347237829,1735609552602,-500.0,0.00019971,3]
[347237830,1735609552622,-500.0,0.00019971,3]
[347237831,1735609552643,-689.63,0.00019971,3]
[347237832,1735609552663,-288.18099529,0.00019971,3]
[347237833,1735609552687,-500.0,0.00019971,3]
[347237834,1735609552706,-500.0,0.00019971,3]
[347237835,1735609552725,-500.0,0.00019971,3]
[347237836,1735609552745,-500.0,0.00019971,3]
[347237837,1735609552765,-500.0,0.00019971,3]
[347237838,1735609552784,-500.0,0.00019971,3]
[347237839,1735609552802,-354.47802569,0.00019971,3]
[347237840,1735609552821,-345.30585068,0.00019971,3]
[347237841,1735609552842,-500.0,0.00019971,3]
[347237842,1735609552860,-500.69814283,0.00019971,3]
[347237843,1735609552880,-500.0,0.00019971,3]
[347237844,1735609552899,-500.0,0.00019971,3]
[347237845,1735609552919,-500.0,0.00019971,3]
[347237846,1735609552944,-500.0,0.00019971,3]
[347237847,1735609552970,-500.0,0.00019971,3]
[347237848,1735609553001,-500.0,0.00019971,3]
[347237849,1735609553028,-500.0,0.00019971,3]
[347237850,1735609553055,-501.60280278,0.00019971,3]
[347237851,1735609553083,-501.52833197,0.00019971,3]
[347237852,1735609553110,-500.0,0.00019971,3]
[347237853,1735609553136,-501.96648479,0.00019971,3]
[347237854,1735609553163,-500.0,0.00019971,3]
[347237855,1735609553189,-500.0,0.00019971,3]
[347237856,1735609553212,-500.0,0.00019971,3]
[347237857,1735609553237,-501.72956675,0.00019971,3]
[347237858,1735609553264,-500.0,0.00019971,3]
[347237859,1735609553292,-500.0,0.00019971,3]
[347237860,1735609553320,-500.0,0.00019971,3]
[347237861,1735609553345,-502.16628071,0.00019971,3]
[347237862,1735609553369,-502.48133731,0.00019971,3]
[347237863,1735609553397,-500.0,0.00019971,3]
[347237864,1735609553422,-504.60225249,0.00019971,3]
[347237865,1735609553447,-500.0,0.00019971,3]
[347237866,1735609553472,-503.33833498,0.00019971,3]
[347237867,1735609553500,-500.0,0.00019971,3]
[347237868,1735609553523,-500.0,0.00019971,3]
[347237869,1735609553547,-500.0,0.00019971,3]
[347237870,1735609553571,-502.80386594,0.00019971,3]
[347237871,1735609553596,-500.0,0.00019971,3]
[347237872,1735609553620,-500.0,0.00019971,3]
[347237873,1735609553645,-500.0,0.00019971,3]
[347237874,1735609553669,-500.0,0.00019971,3]
[347237875,1735609553695,-500.0,0.00019971,3]
[347237876,1735609553719,-500.0,0.00019971,3]
[347237877,1735609553743,-500.0,0.00019971,3]
[347237878,1735609553767,-500.0,0.00019971,2]
[347237879,1735609553791,-503.87565652,0.00019971,3]
[347237880,1735609553817,-504.5738703,0.00019971,3]
[347237881,1735609553843,-20808.93,0.00019971,3]
[347237882,1735609553868,-500.0,0.00019971,3]
[347237883,1735609553892,-500.0,0.00019971,3]
[347237884,1735609553917,-502.95522018,0.00019971,3]
[347237885,1735609553944,-500.0,0.00019971,3]
[347237886,1735609554077,-500.0,0.00019971,3]
[347237887,1735609554108,-500.0,0.00019971,3]
[347237888,1735609554129,-500.0,0.00019971,3]
[347237889,1735609554151,-500.0,0.00019971,3]
[347237890,1735609554172,-962.21,0.00019971,3]
[347237891,1735609554192,-500.0,0.00019971,3]
[347237892,1735609554211,-500.0,0.00019971,3]
[347237893,1735609554231,-500.0,0.00019971,3]
[347237894,1735609554251,-503.07424941,0.00019971,3]
[347237895,1735609554270,-500.0,0.00019971,3]
[347237896,1735609554289,-500.0,0.00019971,3]
[347237897,1735609554309,-500.0,0.00019971,3]
[347237898,1735609554329,-502.50896974,0.00019971,3]
[347237899,1735609554351,-914.34,0.00019971,3]
[347237900,1735609554373,-2152.13,0.00019971,3]
[347237901,1735609554394,-594.38,0.00019971,3]
[347237902,1735609554414,-500.0,0.00019971,3]
[347237903,1735609554434,-501.94218373,0.00019971,3]
[347237904,1735609554454,-500.0,0.00019971,3]
[347237905,1735609554474,-500.0,0.00019971,3]
[347237906,1735609554494,-500.0,0.00019972,3]
[347237907,1735609554513,-500.91162357,0.00019972,3]
[347237908,1735609554533,-357.19214009,0.00019972,3]
[347237909,1735609554554,-675.22,0.00019972,3]
[347237910,1735609554574,-510.68107466,0.00019972,3]
[347237911,1735609554596,-500.0,0.00019972,3]
[347237912,1735609554616,-500.0,0.00019972,3]
[347237913,1735609554636,-500.0,0.00019972,3]
[347237914,1735609554656,-506.4452132,0.00019972,3]
[347237915,1735609554676,-501.75152974,0.00019972,3]
[347237916,1735609554695,-503.70853154,0.00019972,3]
[347237917,1735609554716,-503.42891891,0.00019972,3]
[347237918,1735609554736,-500.0,0.00019972,3]
[347237919,1735609554755,-503.61578631,0.00019972,3]
[347237920,1735609554775,-500.0,0.00019972,3]
[347237921,1735609554794,-502.33615586,0.00019972,3]
[347237922,1735609554816,-655.04,0.00019972,3]
[347237923,1735609554836,-500.0,0.00019972,3]
[347237924,1735609554857,-500.0,0.00019972,3]
[347237925,1735609554878,-500.0,0.00019972,3]
[347237926,1735609554898,-504.03805281,0.00019972,3]
[347237927,1735609554918,-500.0,0.00019972,3]
[347237928,1735609554941,-502.91399868,0.00019972,3]
[347237929,1735609554961,-500.0,0.00019972,3]
[347237930,1735609554981,-1048.7,0.00019972,3]
[347237931,1735609555002,-500.0,0.00019972,3]
[347237932,1735609555022,-502.96396849,0.00019972,3]
[347237933,1735609555042,-592.48,0.00019972,3]
[347237934,1735609555062,-500.0,0.00019972,3]
[347237935,1735609555081,-500.0,0.00019972,3]
[347237936,1735609555102,-500.0,0.00019972,3]
[347237937,1735609555121,-500.0,0.00019972,3]
[347237938,1735609555141,-504.76471148,0.00019972,3]
[347237939,1735609555161,-500.0,0.00019972,3]
[347237940,1735609555181,-500.0,0.00019972,3]
[347237941,1735609555200,-373.38702149,0.00019972,3]
[347237942,1735609555219,-500.96083215,0.00019972,3]
[347237943,1735609555239,-500.0,0.00019972,3]
[347237944,1735609555259,-500.0,0.00019973,3]
[347237945,1735609555279,-500.0,0.00019973,3]
[347237946,1735609555299,-500.0,0.00019973,3]
[347237947,1735609555318,-325.79932666,0.00019973,3]
[347237948,1735609555337,-502.92194352,0.00019973,3]
[347237949,1735609555358,-500.0,0.00019973,3]
[347237950,1735609555378,-505.18450953,0.00019973,3]
[347237951,1735609555400,-6829.26,0.00019973,3]
[347237952,1735609555421,-1025.05,0.00019973,3]
[347237953,1735609555443,-500.0,0.00019973,3]
[347237954,1735609555465,-4512.99,0.00019973,3]
[347237955,1735609555486,-593.836,0.0002,2]
[347237956,1735609555506,-178.07721319,0.00020243,2]
[347237957,1735609555526,-500.0,0.00020243,2]
[347237958,1735609555547,-500.0,0.00020243,2]
[347237959,1735609555568,-500.0,0.00020243,2]
[347237960,1735609555588,-500.0,0.00020243,2]
[347237961,1735609555609,-500.0,0.00020243,2]
[347237962,1735609555630,-500.0,0.00020243,2]
[347237963,1735609555650,-500.0,0.00020243,2]
[347237964,1735609555675,-500.0,0.00020243,2]
[347237965,1735609555696,-500.0,0.00020243,2]
[347237966,1735609555717,-216.89596568,0.00020243,2]
[347237967,1735609555738,-500.0,0.00020243,2]
[347237968,1735609555759,-500.0,0.00020243,2]
[347237969,1735609555779,-251.74005004,0.00020243,2]
[347237970,1735609555800,-500.0,0.00020243,2]
[347237971,1735609555821,-500.0,0.00020243,2]
[347237972,1735609555841,-424.85612928,0.00020243,2]
[347237973,1735609555862,-500.0,0.00020243,2]
[347237974,1735609555882,-500.0,0.00020243,2]
[347237975,1735609555903,-500.0,0.00020243,2]
[347237976,1735609555924,-500.0,0.00020243,2]
[347237977,1735609555948,-500.0,0.00020243,2]
[347237978,1735609555969,-500.0,0.00020243,2]
[347237979,1735609555990,-500.0,0.00020243,2]
[347237980,1735609556012,-500.0,0.00020243,2]
[347237981,1735609556033,-500.0,0.00020243,2]
[347237982,1735609556133,-500.0,0.00020243,2]
[347237983,1735609556154,-500.0,0.00020243,2]
[347237984,1735609556175,-500.0,0.00020243,2]
[347237985,1735609556195,-500.0,0.00020243,2]
[347237986,1735609556215,-500.0,0.00020243,2]
[347237987,1735609556237,-500.0,0.00020243,2]
[347237988,1735609556257,-500.0,0.00020243,2]
[347237989,1735609556278,-500.0,0.00020243,2]
[347237990,1735609556298,-192.4789781,0.00020243,2]
[347237991,1735609556319,-570.59860978,0.00020243,2]
[347237992,1735609556340,-500.0,0.00020243,2]
[347237993,1735609556365,-500.0,0.00020243,2]
[347237994,1735609556386,-500.0,0.00020243,2]
[347237995,1735609556407,-500.0,0.00020243,2]
[347237996,1735609556428,-500.0,0.00020243,2]
[347237997,1735609556450,-500.0,0.00020243,2]
[347237998,1735609556471,-500.0,0.00020243,2]
[347237999,1735609556492,-500.0,0.00020243,2]
[347238000,1735609556513,-500.0,0.00020243,2]
[347238001,1735609556534,-500.0,0.00020243,2]
[347238002,1735609556555,-500.0,0.00020243,2]
[347238003,1735609556577,-500.0,0.00020243,2]
[347238004,1735609556599,-500.0,0.00020243,2]
[347238005,1735609556620,-500.0,0.00020243,2]
[347238006,1735609556641,-500.0,0.00020243,2]
[347238007,1735609556662,-500.0,0.00020243,2]
[347238008,1735609556684,-500.0,0.00020243,2]
[347238009,1735609556706,-500.0,0.00020243,2]
[347238010,1735609556726,-500.0,0.00020243,2]
[347238011,1735609556747,-500.0,0.00020243,2]
[347238012,1735609556768,-500.0,0.00020243,2]
[347238013,1735609556788,-500.0,0.00020243,2]
[347238014,1735609556809,-500.0,0.00020243,2]
[347238015,1735609556829,-500.0,0.00020243,2]
[347238016,1735609556850,-500.0,0.00020243,2]
[347238017,1735609556871,-500.0,0.00020243,2]
[347238018,1735609556892,-500.0,0.00020243,2]
[347238019,1735609556913,-500.0,0.00020243,2]
[347238020,1735609556936,-500.0,0.00020243,2]
[347238021,1735609556956,-500.0,0.00020243,2]
[347238022,1735609556976,-500.0,0.00020243,2]
[347238023,1735609556995,-184.36134055,0.00020244,3]
[347238024,1735609557015,-500.0,0.00020244,3]
[347238025,1735609557035,-500.0,0.00020244,3]
[347238026,1735609557055,-626.26,0.00020244,3]
[347238027,1735609557075,-500.0,0.00020244,3]
[347238028,1735609557095,-868.48,0.00020244,3]
[347238029,1735609557114,-500.0,0.00020244,3]
[347238030,1735609557134,-500.0,0.00020244,3]
[347238031,1735609557156,-900.35,0.00020244,3]
[347238032,1735609557176,-1571.19,0.00020244,3]
[347238033,1735609557196,-500.0,0.00020244,3]
[347238034,1735609557216,-692.07,0.00020244,3]
[347238035,1735609557236,-781.58,0.00020244,3]
[347238036,1735609557257,-309.25003325,0.00020244,3]
[347238037,1735609557277,-500.0,0.00020244,3]
[347238038,1735609557298,-779.12,0.00020244,3]
[347238039,1735609557318,-835.88,0.00020244,3]
[347238040,1735609557339,-718.81,0.00020244,3]
[347238041,1735609557361,-754.77,0.00020244,3]
[347238042,1735609557382,-617.9,0.00020244,3]
[347238043,1735609557402,-500.0,0.00020244,3]
[347238044,1735609557423,-500.0,0.00020244,3]
[347238045,1735609557445,-2721.85,0.00020244,3]
[347238046,1735609557465,-500.0,0.00020244,3]
[347238047,1735609557485,-854.9,0.00020244,3]
[347238048,1735609557505,-500.0,0.00020244,3]
[347238049,1735609557525,-230.63374495,0.00020244,2]
[347238050,1735609557547,-500.0,0.00020244,3]
[347238051,1735609557568,-500.0,0.00020244,3]
[347238052,1735609557588,-500.0,0.00020244,3]
[347238053,1735609557608,-500.0,0.00020244,3]
[347238054,1735609557628,-5574.32,0.00020244,3]
[347238055,1735609557649,-1295.8,0.00020244,3]
[347238056,1735609557670,-992.23,0.00020244,3]
[347238057,1735609557690,-500.0,0.00020245,3]
[347238058,1735609557710,-500.0,0.00020245,3]
[347238059,1735609557731,-500.0,0.00020245,3]
[347238060,1735609557751,-500.0,0.00020245,3]
[347238061,1735609557772,-500.0,0.00020245,3]
[347238062,1735609557793,-500.0,0.00020245,3]
[347238063,1735609557814,-689.63,0.00020245,3]
[347238064,1735609557835,-500.0,0.00020245,3]
[347238065,1735609557863,-500.0,0.00020245,3]
[347238066,1735609557883,-215.20821671,0.00020245,3]
[347238067,1735609557903,-500.0,0.00020245,3]
[347238068,1735609557923,-176.52607347,0.00020245,3]
[347238069,1735609748322,-309.74209135,0.00019573,2]
[347238116,1735609836277,-748.44797996,0.00019573,2]
[347238117,1735609836287,-349.95329147,0.0001987,2]
[347238118,1735609836296,-306.74605747,0.00019969,3]
[347238119,1735609836306,-500.0,0.00019969,3]
[347238120,1735609836315,-300.0,0.00019969,2]
[347238121,1735609836324,-1187.82,0.00019969,3]
[347238122,1735609836334,-500.0,0.00019969,3]
[347238123,1735609836343,-133.33503993,0.00019969,3]
[347238124,1735609836354,-419.60496007,0.00019969,3]
[347238125,1735609836363,-500.0,0.00019969,3]
[347238126,1735609836372,-500.0,0.0001997,3]
[347238127,1735609836382,-378.62575765,0.0001997,3]
[347238128,1735609836390,-1685.60590244,0.0001997,3]
[347238129,1735609836402,-9161.40941861,0.0001997,3]
[347238366,1735609838735,-9094.87467895,0.0001997,3]
[347238368,1735609838744,-645.72943628,0.0001997,3]
[347238370,1735609838753,-500.0,0.0001997,3]
[347238371,1735609838762,-500.0,0.0001997,3]
[347238374,1735609838773,-500.0,0.0001997,3]
[347238376,1735609838782,-632.16,0.0001997,3]
[347238378,1735609838792,-716.45,0.0001997,3]
[347238380,1735609838801,-500.0,0.0001997,3]
[347238382,1735609838812,-2495.02,0.0001997,3]
[347238384,1735609838822,-714.2,0.0001997,3]
[347238386,1735609838831,-766.23,0.0001997,3]
[347238388,1735609838840,-658.91,0.0001997,3]
[347238390,1735609838850,-500.0,0.0001997,3]
[347238392,1735609838860,-276.4445057,0.0001997,3]
[347238394,1735609838869,-500.0,0.0001997,3]
[347238396,1735609838879,-566.41,0.0001997,3]
[347238398,1735609838888,-502.05006204,0.0001997,3]
[347238400,1735609838897,-500.0,0.0001997,3]
[347238402,1735609838906,-909.55,0.0001997,3]
[347238404,1735609838916,-500.0,0.0001997,3]
[347238406,1735609838925,-500.0,0.0001997,3]
[347238408,1735609838934,-574.07,0.0001997,3]
[347238410,1735609838944,-500.0,0.0001997,3]
[347238412,1735609838953,-510.12748946,0.0001997,3]
[347238414,1735609838963,-406.49243524,0.0001997,3]
[347238416,1735609838972,-500.0,0.0001997,3]
[347238418,1735609838981,-500.0,0.0001997,3]
[347238420,1735609838990,-796.1,0.0001997,3]
[347238422,1735609838999,-500.0,0.0001997,3]
[347238424,1735609839009,-508.35998341,0.0001997,3]
[347238426,1735609839018,-1358.86915136,0.0001997,3]
[347238428,1735609839029,-3750.92084864,0.0001997,3]
[347238430,1735609839039,-500.0,0.0001997,3]
[347238432,1735609839048,-834.64,0.0001997,3]
[347238434,1735609839059,-502.51270683,0.0001997,3]
[347238436,1735609839068,-502.45775699,0.0001997,3]
[347238438,1735609839080,-1440.26,0.0001997,3]
[347238440,1735609839089,-500.0,0.0001997,3]
[347238442,1735609839098,-500.0,0.00019971,3]
[347238444,1735609839107,-503.42201294,0.00019971,3]
[347238446,1735609839119,-506.88744723,0.00019971,3]
[347238448,1735609839128,-500.0,0.00019971,3]
[347238450,1735609839138,-647.09,0.00019971,3]
[347238452,1735609839147,-500.0,0.00019971,3]
[347238454,1735609839157,-617.65379645,0.00019971,3]
[347238456,1735609839166,-500.0,0.00019971,3]
[347238458,1735609839174,-1005.0,0.00019971,3]
[347238460,1735609839183,-500.0,0.00019971,3]
[347238462,1735609839192,-500.0,0.00019971,3]
[347238464,1735609839201,-567.8,0.00019971,3]
[347238466,1735609839211,-500.0,0.00019971,3]
[347238468,1735609839220,-500.0,0.00019971,3]
[347238469,1735609839229,-500.0,0.00019971,3]
[347238472,1735609839239,-500.0,0.00019971,3]
[347238474,1735609839248,-627.74,0.00019971,3]
[347238476,1735609839257,-500.0,0.00019972,3]
[347238478,1735609839267,-500.0,0.00019972,3]
[347238480,1735609839275,-503.95139966,0.00019972,3]
[347238482,1735609839285,-500.0,0.00019972,3]
[347238484,1735609839294,-500.0,0.00019972,3]
[347238486,1735609839304,-500.0,0.00019972,3]
[347238488,1735609839315,-500.0,0.00019972,3]
[347238490,1735609839324,-4324.95,0.00019973,3]
[347238492,1735609839333,-500.0,0.00020243,3]
[347238493,1735609839343,-1187.82,0.00020243,3]
[347238495,1735609839352,-500.0,0.00020243,3]
[347238497,1735609839362,-552.94,0.00020243,3]
[347238499,1735609839371,-500.0,0.00020243,3]
[347238502,1735609839380,-500.0,0.00020244,3]
[347238504,1735609839390,-19941.89,0.00020244,3]
[347238506,1735609839399,-500.0,0.00020244,3]
[347238507,1735609839408,-500.0,0.00020244,3]
[347238509,1735609839418,-500.0,0.00020244,3]
[347238512,1735609839428,-632.16,0.00020244,3]
[347238514,1735609839437,-716.45,0.00020244,3]
[347238516,1735609839447,-500.0,0.00020244,3]
[347238518,1735609839456,-2495.02,0.00020244,3]
[347238520,1735609839466,-714.2,0.00020244,3]
[347238522,1735609839476,-766.23,0.00020244,3]
[347238524,1735609839485,-658.91,0.00020244,3]
[347238526,1735609839494,-510.26794975,0.00020244,3]
[347238528,1735609839503,-500.0,0.00020244,3]
[347238530,1735609839513,-566.41,0.00020244,3]
[347238532,1735609839522,-500.0,0.00020244,3]
[347238534,1735609839532,-909.55,0.00020244,3]
[347238535,1735609839541,-500.0,0.00020244,3]
[347238538,1735609839550,-500.0,0.00020244,3]
[347238539,1735609839562,-500.0,0.00020244,3]
[347238542,1735609839572,-574.07,0.00020244,3]
[347238543,1735609839581,-228.42666574,0.00020244,3]
[347238546,1735609839594,-271.57333426,0.00020244,3]
[347238548,1735609839603,-165.63726626,0.00020244,3]
[347238794,1735609842135,-334.36273374,0.00020244,3]
[347238796,1735609842145,-796.1,0.00020244,3]
[347238798,1735609842154,-500.0,0.00020244,3]
[347238800,1735609842165,-5109.79,0.00020244,3]
[347238801,1735609842175,-500.0,0.00020244,3]
[347238803,1735609842184,-834.64,0.00020244,3]
[347238805,1735609842193,-1440.26,0.00020244,3]
[347238807,1735609842203,-500.0,0.00020244,3]
[347238809,1735609842212,-500.0,0.00020245,3]
[347238812,1735609842222,-504.61141509,0.00020245,3]
[347238814,1735609842232,-415.23321191,0.00020245,3]
[347238815,1735609842241,-513.30211448,0.00020245,3]
[347238817,1735609842251,-500.93860084,0.00020245,3]
[347238819,1735609842260,-500.0,0.00020245,3]
[347238821,1735609842269,-500.0,0.00020245,3]
[347238823,1735609842279,-500.0,0.00020245,3]
[347238825,1735609842288,-500.0,0.00020245,3]
[347238827,1735609842296,-500.0,0.00020245,3]
[347238829,1735609842306,-504.19610621,0.00020245,3]
[347238831,1735609842317,-603.56463876,0.00020245,3]
[347238833,1735609842326,-502.52508594,0.00020245,3]
[347238836,1735609842336,-500.0,0.00020245,3]
[347238838,1735609842345,-500.0,0.00020245,3]
[347238839,1735609842354,-500.0,0.00020245,3]
[347238841,1735609842363,-500.0,0.00020245,3]
[347238843,1735609842373,-508.49284064,0.00020245,3]
[347238845,1735609842381,-500.0,0.00020245,3]
[347238847,1735609842391,-500.0,0.00020245,3]
[347238849,1735609842400,-500.0,0.00020245,3]
[347238851,1735609842409,-582.77247393,0.00020245,3]
[347238853,1735609842419,-500.0,0.00020245,3]
[347238855,1735609842428,-500.0,0.00020245,3]
[347238857,1735609842437,-962.21,0.00020245,3]
[347238859,1735609842446,-37.85097176,0.00020245,3]
[347238863,1735609842478,-198.24626548,0.00020245,3]
[347238865,1735609842487,-500.0,0.00020245,3]
[347238867,1735609842497,-500.0,0.00020245,3]
[347238869,1735609842506,-418.98838068,0.00020245,3]
[347238871,1735609842515,-503.81278275,0.00020245,3]
[347238874,1735609842525,-504.05313107,0.00020245,3]
[347238876,1735609842534,-631.37503987,0.00020245,3]
[347238996,1735609843710,-282.96496013,0.00020245,3]
[347238998,1735609843719,-974.96210614,0.00020245,3]
[347239022,1735609843942,-1177.16789386,0.00020245,3]
[347239024,1735609843951,-91.64701802,0.00020245,3]
[347239027,1735609843973,-14.30524425,0.00020245,3]
[347239078,1735609846978,-196.395646,0.00013973,2]
[347239079,1735609846988,-488.42773773,0.00020245,3]
[347239080,1735609846999,-500.0,0.00020245,3]
[347239081,1735609847008,-500.0,0.00020245,3]
[347239082,1735609847017,-500.0,0.00020245,3]
[347239083,1735609847027,-500.0,0.00020245,3]
[347239084,1735609847036,-500.0,0.00020245,3]
[347239085,1735609847045,-647.09,0.00020245,3]
[347239086,1735609847055,-500.0,0.00020245,3]
[347239087,1735609847065,-500.0,0.00020245,3]
[347239088,1735609847075,-1005.0,0.00020245,3]
[347239089,1735609847087,-500.0,0.00020245,3]
[347239090,1735609847096,-500.0,0.00020245,3]